[Event "Chessable English Open-ch 2022"]
[Site "Kenilwoth"]
[Date "2022.05.19"]
[Round "2.7"]
[White "Okhai, Shabir"]
[Black "Hebden, Mark L"]
[Result "0-1"]
[ECO "C55"]
[WhiteElo "2121"]
[BlackElo "2452"]
[Annotator "TA"]
[PlyCount "82"]
[EventDate "2022.05.18"]
[EventType "swiss"]
[EventCountry "ENG"]
[SourceTitle "playchess.com"]
[Source "ChessBase"]
[SourceQuality "1"]
[TimeControl "5400+30"]

{[%evp 13,81,34,34,35,36,32,38,36,33,29,46,41,39,40,25,14,22,33,53,43,41,31,44,39,44,41,45,17,39,46,43,-29,-35,-49,-36,-133,-131,-140,-135,-368,-376,-345,-377,-345,-343,-333,-327,-385,-372,-359,-261,-254,-252,-1062,-283,-280,-256,-304,-279,-521,-501,-483,-401,-1088,-1062,-29991,-29992,-29997,-29998,-29999]} 1. e4 {[%emt 0:00:03]} e5 {[%emt 0:00:26]} 2. Nf3 {[%emt 0:00:05]} Nc6 {[%emt 0:00:24]} 3. Bc4 {[%emt 0:00:06]} Nf6 {[%emt 0:00:59]} 4. d3 {[%emt 0:00:05]} Be7 {[%emt 0:00:24]} 5. O-O {[%emt 0:00:08]} d6 {[%emt 0:00:39]} 6. a4 {[%emt 0:00:15]} O-O {[%emt 0:00:33]} 7. Re1 {[%emt 0:00:57]} Be6 {[%emt 0:04:39]} 8. Bxe6 {[%emt 0:00:23] C55: Two Knights: 4 d3, 4 d4 exd4 5 e5 and Max Lange Attack.} fxe6 {[%emt 0:00:06]} 9. c3 {[%emt 0:00:06]} Qe8 {[%emt 0:00:50] is now debated instead of 9...Qd7.} 10. b4 {[%emt 0:00:16] White is slightly better.} Qg6 {[%emt 0:02:17]} 11. Be3 {[%emt 0:00:39]} Nh5 {[%emt 0:02:28]} 12. Nbd2 {[%emt 0:00:25]} Nf4 {[%emt 0:04:49]} 13. Bxf4 {[%emt 0:00:07]} Rxf4 {[%emt 0:00:16]} 14. Re3 {[%emt 0:00:58]} Raf8 {[%emt 0:00:38] [#]} 15. Qb3 $146 {[%emt 0:01:02]} ({Predecessor:} 15. g3 R4f7 16. b5 Na5 17. Rc1 c5 18. bxc6 Nxc6 19. Rc2 Qh5 20. Qe2 g5 21. Ne1 {½-½ (49) Greet,A (2417)-Hebden,M (2453) London 2021}) 15... Kh8 {[%emt 0:01:33]} 16. Rf1 {[%emt 0:01:56]} Bg5 {[%emt 0:03:35]} 17. Nxg5 {[%emt 0:01:34]} Qxg5 {[%emt 0:00:12]} 18. Rg3 {[%emt 0:11:40]} Qf6 {[%emt 0:03:14]} 19. Rf3 {[%emt 0:02:55]} g5 {[%emt 0:02:40]} 20. Qd1 {[%emt 0:04:45]} Ne7 {[%emt 0:01:10][%cal Bc6e7,Be7g6,Bg6f4][%mdl 32]} 21. Qe2 {[%emt 0:09:06]} Ng6 {[%emt 0:01:10]} 22. Re3 {[%emt 0:04:44]} (22. Rxf4 $14 gxf4 23. Qh5) 22... Rh4 $11 {[%emt 0:01:23] And now ...Nf4 would win.} 23. Rb1 {[%emt 0:19:43]} Nf4 {[%emt 0:03:03]} 24. Qf1 {[%emt 0:04:33] [#]} ({White should play} 24. Qe1 $1 $15) 24... Qh6 $1 $17 {[%emt 0:06:03] Black is more active.} 25. h3 {[%emt 0:03:21]} g4 {[%emt 0:00:54]} 26. Kh2 $2 {[%emt 0:03:17] [#] Loses the game.} (26. d4 $17 {was necessary.}) 26... Nxg2 $1 $19 {[%emt 0:06:29][%mdl 512]} 27. Qxg2 {[%emt 0:09:40]} Rxh3+ {[%emt 0:00:21]} 28. Rxh3 {[%emt 0:03:12]} gxh3 {[%emt 0:00:53]} 29. Qg3 {[%emt 0:03:09][%cal Ob1g1] aiming for Rg1!} Qxd2 {[%emt 0:00:24][%mdl 4096] Endgame KQR-KQR} 30. Rf1 {[%emt 0:02:29]} Qe2 {[%emt 0:12:13]} 31. Qxh3 {[%emt 0:00:38]} Rf6 {[%emt 0:00:14]} (31... Rxf2+ $2 32. Rxf2 Qxf2+ 33. Kh1 $19) 32. Qh4 {[%emt 0:01:46] [#]} Qf3 {[%emt 0:00:19]} 33. Qg5 $2 {[%emt 0:01:46]} (33. d4) 33... h6 $2 {[%emt 0:02:06]} (33... Rg6 34. Qd8+ Rg8 35. Qxg8+ Kxg8 36. Rg1+ Kf7) 34. Qh4 {[%emt 0:00:24]} Kh7 $40 {[%emt 0:00:21][%mdl 128] Black has strong attack.} (34... Rg6 35. Rg1 Qf6 36. Rg4 $17) 35. a5 {[%emt 0:01:05]} Rf7 {[%emt 0:01:11]} ({Worse is} 35... Qxd3 36. Qxf6 Qxf1 37. Qf7+ Kh8 38. Qf6+ Kg8 39. Qxe6+ Kh7 40. Qe7+ Kg6 41. Qe6+ Kh5 42. Qf7+ Kg5 43. Qf5+ Kh4 44. Qf6+ Kh5 45. Qf5+ Kh4 46. Qf6+ Kh5 47. Qf7+ (47. Qf5+ Kh4 $11) 47... Kh4 48. Qf6+ $11) 36. d4 $2 {[%emt 0:02:27]} (36. Qh3 {might work better.}) 36... Qe2 {[%emt 0:02:32]} ({Stronger than} 36... Rg7 37. Rg1 $17) 37. Qh3 {[%emt 0:01:40]} Qxe4 {[%emt 0:01:10]} 38. Qxe6 {[%emt 0:02:17]} (38. f3 $142 Qe3 39. Rg1) 38... Qf4+ {[%emt 0:00:45]} 39. Kh3 {[%emt 0:00:27]} Rg7 {[%emt 0:04:29] Black mates.} 40. dxe5 {[%emt 0:01:53]} Qg5 {[%emt 0:00:19][%cal Rg5h5]} 41. Qxh6+ {[%emt 0:01:29]} Qxh6# {[%emt 0:32:49] Weighted Error Value: White=0.73/Black=0.24 (precise)} 0-1

[Event "Chessable English Open-ch 2022"]
[Site "Kenilwoth"]
[Date "2022.05.19"]
[Round "2.8"]
[White "Herring, Samuel"]
[Black "Jackson, James P"]
[Result "0-1"]
[ECO "A30"]
[WhiteElo "1900"]
[BlackElo "2400"]
[Annotator "TA"]
[PlyCount "112"]
[EventDate "2022.05.18"]
[EventType "swiss"]
[EventCountry "ENG"]
[SourceTitle "playchess.com"]
[Source "ChessBase"]
[SourceQuality "1"]
[TimeControl "5400+30"]

{[%evp 16,112,18,25,39,23,29,0,-6,-12,24,5,10,-41,0,-75,-20,-75,-62,-84,-81,-91,-93,-99,-94,-94,-79,-113,-120,-117,-61,-50,-63,-45,-45,-114,-80,-80,-61,-86,-20,-36,0,-11,-15,-65,-22,-13,0,0,0,0,0,-48,-27,-342,-342,-342,-342,-342,-342,-342,-342,-327,-335,-335,-335,-335,-335,-335,-335,-335,-309,-443,-443,-416,-437,-676,-653,-614,-565,-5700,-5532,-29970,-5700,-29980,-29981,-29980,-29981,-29981,-29982,-29985,-29986,-29987,-29988,-29989,-29990,-29992,-29989]} 1. Nf3 {[%emt 0:00:04]} Nf6 {[%emt 0:00:47]} 2. g3 {[%emt 0:00:13]} b6 {[%emt 0:02:13]} 3. Bg2 {[%emt 0:00:41]} Bb7 {[%emt 0:00:05]} 4. O-O {[%emt 0:00:54]} c5 {[%emt 0:00:22]} 5. c4 {[%emt 0:01:38]} e6 {[%emt 0:00:25]} 6. d4 {[%emt 0:01:40]} cxd4 {[%emt 0:00:06]} 7. Nxd4 {[%emt 0:00:35]} Bxg2 {[%emt 0:03:42]} 8. Kxg2 {[%emt 0:00:06]} Qc8 {[%emt 0:00:18]} 9. b3 {[%emt 0:08:15]} a6 {[%emt 0:00:32][%cal Ob6b5] A30: Symmetrical English: Double Fianchetto and Hedgehog.} 10. Bb2 {[%emt 0:02:10][%cal Oe2e4]} Qb7+ {[%emt 0:05:57] [#]} 11. Nf3 $146 {[%emt 0:05:25]} ({Predecessor:} 11. Kg1 Be7 12. Nc3 O-O 13. Qd2 d6 14. Rac1 Rd8 15. f3 Nc6 16. Nxc6 Qxc6 17. e4 {½-½ (29) Huebner,R (2604)-Bischoff,K (2561) Playchess.com INT 2004}) 11... Be7 {[%emt 0:00:32] The position is equal.} 12. Nc3 {[%emt 0:02:28][%cal Oe2e4]} d6 {[%emt 0:02:02]} 13. Qc2 {[%emt 0:06:26]} Nbd7 {[%emt 0:00:54]} 14. Rfd1 {[%emt 0:04:04]} (14. a4 $11) 14... O-O {[%emt 0:03:24]} 15. Rac1 {[%emt 0:01:28]} (15. Ba3 $11 {remains equal.}) 15... Rfc8 {[%emt 0:05:29]} ({Black should try} 15... b5 $1 $17) 16. Qb1 {[%emt 0:10:45]} (16. a4 $11 {keeps the balance.}) 16... b5 $17 {[%emt 0:01:25]} 17. cxb5 {[%emt 0:02:02]} axb5 {[%emt 0:00:06]} 18. a4 {[%emt 0:04:12]} bxa4 {[%emt 0:06:05]} 19. bxa4 {[%emt 0:00:32]} d5 {[%emt 0:01:05] Black is more active.} 20. Ba1 {[%emt 0:07:17]} Qa7 {[%emt 0:02:56]} 21. Nd4 {[%emt 0:02:39]} Nc5 {[%emt 0:02:19]} 22. Qb5 {[%emt 0:06:18]} Nce4 {[%emt 0:09:43]} (22... Nxa4 23. Nc6 Rxc6 24. Qxc6 $16) (22... Bf8 $17 {...Rab8 is the strong threat.} 23. e3 Nxa4 24. Nxa4 Rxc1 25. Rxc1 Qxa4 26. Qxa4 Rxa4) 23. Nxe4 $15 {[%emt 0:03:07]} Nxe4 {[%emt 0:00:33]} 24. Rxc8+ $1 {[%emt 0:03:19]} Rxc8 {[%emt 0:00:06]} 25. e3 {[%emt 0:01:38]} ({White should play} 25. a5 $15) 25... Nd6 {[%emt 0:10:29][%cal Be4d6,Bd6c4,Bc4e5,Be5f3][%mdl 32]} 26. Qb3 {[%emt 0:02:34]} Qa8 {[%emt 0:00:37]} 27. Rb1 {[%emt 0:02:37] [#]} h5 {[%emt 0:08:13]} (27... Bf8 $1 $17) 28. h4 {[%emt 0:00:43]} Bf6 {[%emt 0:02:10]} (28... Ne4 {is more complex.} 29. Qd1 g6 30. Ne2 Rc4) 29. Qd1 {[%emt 0:03:27]} e5 {[%emt 0:02:50]} 30. Nb5 {[%emt 0:02:33]} (30. Nf3 $11) 30... Nc4 {[%emt 0:01:14] Hoping for ...d4+.} (30... Nf5 $5 {[%cal Rd5d4]} 31. Qf3 (31. Qxh5 d4+ 32. Kh3 g6 $17) 31... g6 $17) 31. Kh2 {[%emt 0:03:02]} d4 {[%emt 0:10:07]} 32. exd4 {[%emt 0:02:54]} exd4 {[%emt 0:00:29]} 33. Rc1 {[%emt 0:03:39]} ({Much weaker is} 33. Bxd4 Rd8 34. Qe2 Bxd4 $17) 33... Qd5 {[%emt 0:05:58] And now ...d3 would win.} 34. Qd3 {[%emt 0:01:06]} (34. Bxd4 $11 Rd8 {[#]} 35. Qh1 $1 Qxh1+ 36. Kxh1 Bxd4 37. Rxc4 Bxf2 38. Kg2) 34... Rc6 {[%emt 0:00:40][%cal Oc4e3]} 35. Re1 {[%emt 0:02:34][%mdl 8192] Prevents Ne3. This costs White the game.} ({Don't go for} 35. Bxd4 $2 Ne5 36. Qd1 Nf3+ 37. Kh3 Rxc1 38. Qxc1 Nxd4 $19) (35. Nxd4 $11 Ne5 36. Qf1 Rxc1 37. Qxc1) 35... Ne5 $19 {[%emt 0:03:17]} 36. Qe4 {[%emt 0:03:33]} Nf3+ {[%emt 0:00:12]} 37. Kh1 {[%emt 0:00:35]} Qxe4 {[%emt 0:00:12]} 38. Rxe4 {[%emt 0:00:06]} Rc1+ {[%emt 0:00:05]} 39. Kg2 {[%emt 0:00:19]} Ne1+ {[%emt 0:00:04]} ({Not} 39... Rxa1 40. Kxf3 Rxa4 41. Re8+ Kh7 42. Rc8 $15) 40. Rxe1 {[%emt 0:00:49]} Rxe1 {[%emt 0:00:06]} 41. Bxd4 {[%emt 0:00:17]} Bxd4 {[%emt 0:01:39]} 42. Nxd4 {[%emt 0:00:01][%mdl 4096] Endgame KR-KN} Re4 {[%emt 0:00:21]} 43. Nf5 {[%emt 0:00:59]} Rxa4 {[%emt 0:00:06] Threatens to win with ...Kh7.} 44. Ne3 {[%emt 0:00:45]} (44. Kf3 $142) 44... Kh7 {[%emt 0:00:18]} 45. Nd5 {[%emt 0:00:46]} Kg6 {[%emt 0:02:28]} 46. Kf3 {[%emt 0:00:57]} (46. Nc3 $142 Ra6 47. Ne2) 46... Kf5 {[%emt 0:00:46]} 47. Ne3+ {[%emt 0:00:49]} Ke5 {[%emt 0:00:13]} 48. g4 {[%emt 0:00:48]} Rf4+ {[%emt 0:02:51]} 49. Kg3 {[%emt 0:00:17]} Ke4 {[%emt 0:00:04] ( -> ...Rf3+)} 50. gxh5 {[%emt 0:00:49]} Rf3+ {[%emt 0:00:06] Black mates.} 51. Kg2 {[%emt 0:00:22]} Rxe3 {[%emt 0:00:26]} 52. fxe3 {[%emt 0:00:05]} Kxe3 {[%emt 0:00:05]} 53. Kg3 {[%emt 0:00:44]} f5 {[%emt 0:00:18][%cal Bf7f5,Bf5f4][%mdl 32]} 54. h6 {[%emt 0:00:44]} gxh6 {[%emt 0:00:05]} 55. h5 {[%emt 0:00:01]} f4+ {[%emt 0:00:19]} 56. Kg2 {[%emt 0:00:52]} Ke2 {[%emt 0:00:08] Weighted Error Value: White=0.71/Black=0.11 (very precise)} 0-1

[Event "Chessable English Open-ch 2022"]
[Site "Kenilwoth"]
[Date "2022.05.19"]
[Round "2.9"]
[White "Wells, Peter K"]
[Black "Macklin, Paul"]
[Result "1-0"]
[ECO "E94"]
[WhiteElo "2374"]
[BlackElo "2350"]
[Annotator "TA"]
[PlyCount "61"]
[EventDate "2022.05.18"]
[EventType "swiss"]
[EventCountry "ENG"]
[SourceTitle "playchess.com"]
[Source "ChessBase"]
[SourceQuality "1"]
[TimeControl "5400+30"]

{[%evp 19,61,39,89,83,95,100,103,95,105,99,71,95,92,89,93,58,59,36,38,47,47,51,47,4,39,29,33,32,41,30,131,129,137,137,132,141,141,136,2409,2409,1785,1786,1633,1602]} 1. d4 {[%emt 0:01:56]} Nf6 {[%emt 0:00:08]} 2. c4 {[%emt 0:00:10]} g6 {[%emt 0:00:06]} 3. Nc3 {[%emt 0:00:04]} Bg7 {[%emt 0:00:04]} 4. e4 {[%emt 0:00:05]} d6 {[%emt 0:00:04]} 5. Nf3 {[%emt 0:00:15]} O-O {[%emt 0:00:06]} 6. Be2 {[%emt 0:00:04]} e5 {[%emt 0:01:18]} 7. O-O {[%emt 0:00:14]} exd4 {[%emt 0:06:01]} 8. Nxd4 {[%emt 0:00:07]} Re8 {[%emt 0:00:03]} 9. f3 {[%emt 0:00:09]} c6 {[%emt 0:00:44]} 10. Kh1 {[%emt 0:01:11]} d5 {[%emt 0:00:45] 10...Nh5 is not played anymore.} (10... Nfd7 $14) 11. cxd5 $16 {[%emt 0:02:47] E94: King's Indian: Classical: 6 Be2 e5 7 0-0: Various Black 7th moves.} cxd5 {[%emt 0:00:05]} 12. Bg5 {[%emt 0:02:46] White is more active.} Nc6 {[%emt 0:00:17] [#]} 13. Bb5 $1 {[%emt 0:54:46] White is better.} h6 {[%emt 0:01:18][%cal Bh7h6,Bh6g5,Bg5g4][%mdl 32]} 14. Nxc6 {[%emt 0:09:20]} bxc6 {[%emt 0:00:06]} 15. Bxc6 {[%emt 0:00:05] Bxf6 is the strong threat.} hxg5 {[%emt 0:00:15]} 16. Bxa8 {[%emt 0:01:07] Strongly threatening Bc6.} d4 {[%emt 0:00:46]} 17. Nd5 {[%emt 0:05:04]} Ba6 $1 {[%emt 0:03:49][%csl LRa8,LRf1]} 18. Bc6 {[%emt 0:01:55]} Re6 {[%emt 0:00:13] [#]} 19. Rc1 $1 {[%emt 0:01:05][%cal Ba1c1,Bc1c6,Bc6c7,Bc7f7,Bf7f4,Bf4h4][%mdl 32]} Bxf1 {[%emt 0:17:36]} 20. Qxf1 {[%emt 0:00:36]} g4 {[%emt 0:11:11] [#]} 21. Bb7 $146 {[%emt 0:10:56] Threatens to win with Rc8.} (21. Nf4 $5 {[%cal Rf4e6]} Re7 22. Nd3 $14) ({Predecessor:} 21. Nf4 Re7 22. Nd3 gxf3 23. Qxf3 Nd7 24. Bd5 Ne5 25. Nxe5 Bxe5 26. g3 Kg7 27. Kg2 {½-½ (35) Ding,L (2791)-Carlsen,M (2863) chess24.com INT 2020}) 21... Qd6 {[%emt 0:09:35]} 22. Rc6 $36 {[%emt 0:03:28][%mdl 2048] White has some pressure.} Qd7 {[%emt 0:01:31]} 23. Rc7 {[%emt 0:00:42]} Qd6 $1 {[%emt 0:00:29]} 24. fxg4 {[%emt 0:01:49] Black must now prevent g5.} Kh7 {[%emt 0:15:37]} (24... Qe5 $11) 25. Rxf7 {[%emt 0:01:28]} Nxg4 {[%emt 0:17:15][%csl Gg4][%cal Rd6h2] [#]} 26. Rf4 $1 {[%emt 0:00:44]} Ne5 {[%emt 0:01:36]} 27. Bc8 {[%emt 0:00:23]} Re8 {[%emt 0:01:07]} 28. Ba6 {[%emt 0:00:14]} Qc5 $2 {[%emt 0:01:37][%mdl 8192]} (28... Rf8 $16) 29. Rh4+ $18 {[%emt 0:00:51] White is clearly winning.} Kg8 {[%emt 0:00:28]} 30. Nf6+ {[%emt 0:00:31]} Bxf6 {[%emt 0:00:15]} 31. Qxf6 {[%emt 0:00:03] Weighted Error Value: White=0.05 (flawless) /Black=0.17 (very precise)} 1-0

[Event "Chessable English Open-ch 2022"]
[Site "Kenilwoth"]
[Date "2022.05.19"]
[Round "2.10"]
[White "Boswell, Jacob Connor"]
[Black "Pert, Max"]
[Result "1-0"]
[ECO "B11"]
[WhiteElo "2075"]
[BlackElo "1634"]
[Annotator "TA"]
[PlyCount "93"]
[EventDate "2022.05.18"]
[EventType "swiss"]
[EventCountry "ENG"]
[SourceTitle "playchess.com"]
[Source "ChessBase"]
[SourceQuality "1"]
[TimeControl "5400+30"]

{[%evp 10,93,25,25,20,25,22,17,16,18,15,0,18,16,0,0,57,22,27,0,69,65,104,31,34,19,19,18,52,45,73,40,30,37,143,157,193,193,176,85,88,80,80,78,86,81,103,103,117,59,126,130,154,154,160,147,159,142,155,171,248,204,239,0,218,217,183,177,359,336,924,852,795,537,597,358,1009,1008,974,975,1939,1835,29987,29988,29988,29989]} 1. e4 {[%emt 0:00:07]} c6 {[%emt 0:00:07]} 2. Nc3 {[%emt 0:00:12]} d5 {[%emt 0:00:28]} 3. Nf3 {[%emt 0:00:10]} dxe4 {[%emt 0:01:06]} 4. Nxe4 {[%emt 0:00:10]} Nf6 {[%emt 0:00:44]} 5. Qe2 {[%emt 0:00:20]} Nxe4 {[%emt 0:01:15]} 6. Qxe4 {[%emt 0:00:10]} Qa5 {[%emt 0:01:55] B11: Caro-Kann: Two Knights Variation.} 7. Bc4 {[%emt 0:00:59]} Bf5 {[%emt 0:01:13]} 8. Qf4 {[%emt 0:00:20][%cal Ob2b4] Strongly threatening b4!} e6 {[%emt 0:03:35] The position is equal.} 9. O-O {[%emt 0:04:15]} Be7 {[%emt 0:02:42]} 10. c3 {[%emt 0:07:32]} O-O {[%emt 0:02:32]} 11. d4 {[%emt 0:01:42]} Nd7 {[%emt 0:03:13]} 12. Re1 {[%emt 0:02:16] [#]} Rfd8 $146 {[%emt 0:02:42]} (12... Qd8 $11) ({Predecessor:} 12... Bg6 13. Qg3 Rfe8 14. Bf4 Rac8 15. h4 Nf6 16. Be5 c5 17. Bb3 c4 18. Bd1 Qb6 {0-1 (27) Sevian,S (2660)-Iturrizaga Bonelli,E (2607) Chess.com INT 2021}) 13. a4 {[%emt 0:05:06] Threatens to win with b4.} b5 {[%emt 0:06:15]} 14. Be2 {[%emt 0:21:40][%cal Od4d5]} Nf6 {[%emt 0:11:39]} (14... b4 $11) 15. Ne5 $1 $14 {[%emt 0:06:07]} Qb6 {[%emt 0:02:09]} 16. a5 {[%emt 0:08:52]} (16. g4 $16 Bg6 17. Qf3) 16... Qc7 {[%emt 0:02:36]} 17. Bf3 {[%emt 0:01:29]} Nd5 {[%emt 0:01:37]} 18. Bxd5 {[%emt 0:07:46]} cxd5 {[%emt 0:05:37]} 19. g4 {[%emt 0:00:39]} g5 {[%emt 0:01:54]} 20. Qg3 {[%emt 0:00:52]} Be4 {[%emt 0:04:51]} 21. f3 {[%emt 0:01:25]} Bg6 {[%emt 0:01:38] [#]} ({Better is} 21... f6 $14) 22. f4 $1 $16 {[%emt 0:01:12]} gxf4 {[%emt 0:02:36]} 23. Bxf4 {[%emt 0:00:24]} Bd6 {[%emt 0:01:14]} 24. b4 {[%emt 0:06:39]} (24. Rf1 $18 {and White stays clearly on top.}) 24... f6 {[%emt 0:06:33]} 25. Nxg6 {[%emt 0:00:34] White is more active.} hxg6 {[%emt 0:00:12]} 26. Bxd6 {[%emt 0:06:58]} Qxd6 {[%emt 0:00:16]} 27. Qd3 {[%emt 0:01:03][%csl LRb5,LRg6]} Kf7 {[%emt 0:02:39]} 28. Qxb5 {[%emt 0:00:20]} Rac8 {[%emt 0:00:45] [#]} 29. Re3 {[%emt 0:00:56]} ({Inferior is} 29. Qb7+ Rc7 30. Qb5 Rxc3 $17) (29. Qd3 $1 $16) 29... Rh8 {[%emt 0:01:28]} (29... Rc4 $1 $14) 30. Qe2 {[%emt 0:01:12]} Rh4 {[%emt 0:01:06]} 31. Re1 {[%emt 0:02:32][%cal Re3e6]} Re8 {[%emt 0:00:53]} 32. b5 {[%emt 0:08:54]} g5 {[%emt 0:02:58]} 33. h3 {[%emt 0:02:32]} Rh6 {[%emt 0:01:39]} 34. Kg2 {[%emt 0:00:11]} Rh4 {[%emt 0:02:06]} (34... Re7 $142 35. Rb1 Rh8) 35. Rf1 $18 {[%emt 0:01:24]} Reh8 {[%emt 0:01:07]} 36. Re1 {[%emt 0:00:47]} Re8 {[%emt 0:00:13]} 37. Rb1 {[%emt 0:00:36]} Rb8 {[%emt 0:01:21] Prevents b6.} 38. Rf3 {[%emt 0:00:08]} Rbh8 $2 {[%emt 0:04:01]} (38... Kg7 39. b6 axb6) 39. Qe5 {[%emt 0:00:16] The board is on fire.} Qd8 {[%emt 0:02:03]} (39... Qxe5 40. dxe5 f5 41. gxf5 g4 42. hxg4 Rxg4+ 43. Rg3 Re4) 40. Rbf1 {[%emt 0:00:33][%cal Rf3f6]} R4h6 {[%emt 0:00:39]} 41. Qxg5 {[%emt 0:00:45] aiming for Qe5.} Rg6 {[%emt 0:00:45]} 42. Qf4 {[%emt 0:00:17]} Rhh6 $2 {[%emt 0:00:51]} (42... Qb8 43. Rb1 f5) 43. b6 {[%emt 0:00:35]} axb6 {[%emt 0:00:36]} 44. a6 {[%emt 0:00:05][%cal Ba5a6,Ba6a7][%mdl 32]} Qd7 {[%emt 0:00:47]} 45. Qb8 {[%emt 0:00:45] Black must now prevent a7.} Qb5 {[%emt 0:00:42]} 46. a7 {[%emt 0:00:30]} Qe2+ {[%emt 0:00:52]} 47. R1f2 {[%emt 0:00:13] Weighted Error Value: White=0.33/Black=0.46} 1-0

[Event "Chessable English Open-ch 2022"]
[Site "Kenilwoth"]
[Date "2022.05.19"]
[Round "2.11"]
[White "Southcott-Moyers, Indy"]
[Black "Thompson, Ian D"]
[Result "1/2-1/2"]
[ECO "D13"]
[WhiteElo "2028"]
[BlackElo "2074"]
[Annotator "TA"]
[PlyCount "34"]
[EventDate "2022.05.18"]
[EventType "swiss"]
[EventCountry "ENG"]
[SourceTitle "playchess.com"]
[Source "ChessBase"]
[SourceQuality "1"]
[TimeControl "5400+30"]

{[%evp 19,34,-7,-2,0,5,0,0,0,0,0,0,0,0,-4,0,0,0]} 1. d4 {[%emt 0:00:01]} d5 {[%emt 0:00:06]} 2. c4 {[%emt 0:00:07]} c6 {[%emt 0:00:18]} 3. cxd5 {[%emt 0:00:05]} cxd5 {[%emt 0:00:06]} 4. Nc3 {[%emt 0:00:05]} Nc6 {[%emt 0:00:10]} 5. Nf3 {[%emt 0:00:09]} Nf6 {[%emt 0:00:13]} 6. Bf4 {[%emt 0:00:14]} a6 {[%emt 0:00:21]} 7. e3 {[%emt 0:03:07]} Bg4 {[%emt 0:00:42]} 8. Be2 {[%emt 0:02:42]} e6 {[%emt 0:03:24]} 9. Ne5 {[%emt 0:04:05]} Bxe2 {[%emt 0:01:59]} 10. Qxe2 {[%emt 0:01:12]} Rc8 {[%emt 0:03:22][%cal Ba8c8,Bc8c6,Bc6c1][%mdl 32] The position is equal.} 11. O-O {[%emt 0:07:37] D13: Slav Defence: Exchange variation without ...Bf5.} Bd6 {[%emt 0:03:28]} 12. Nxc6 {[%emt 0:05:35]} Rxc6 {[%emt 0:00:08]} 13. Bxd6 {[%emt 0:20:51]} Qxd6 {[%emt 0:00:25]} 14. Rfc1 {[%emt 0:00:57]} O-O {[%emt 0:01:00] [#]} 15. Na4 $146 {[%emt 0:08:44]} ({Predecessor:} 15. a3 Rfc8 16. Na2 h6 17. Rxc6 Qxc6 18. Qf1 Qa4 19. Rc1 Rc4 20. Rxc4 dxc4 21. Qc1 {½-½ (33) Kosic,D (2505)-Serper,G (2535) North Bay 1998}) 15... Rfc8 {[%emt 0:06:43]} 16. Nc5 {[%emt 0:02:12]} Nd7 {[%emt 0:08:35][%cal Rd7c5]} 17. Nd3 {[%emt 0:01:48]} Rxc1+ {[%emt 0:07:02] Not much happened in this game.  Weighted Error Value: White=0.01 (flawless) /Black=0.03 (flawless)} 1/2-1/2

[Event "Chessable English Open-ch 2022"]
[Site "Kenilwoth"]
[Date "2022.05.19"]
[Round "2.12"]
[White "Khoury, Theo"]
[Black "Larkin, Benjamin"]
[Result "1-0"]
[ECO "B13"]
[WhiteElo "1927"]
[BlackElo "1853"]
[Annotator "TA"]
[PlyCount "31"]
[EventDate "2022.05.18"]
[EventType "swiss"]
[EventCountry "ENG"]
[SourceTitle "playchess.com"]
[Source "ChessBase"]
[SourceQuality "1"]
[TimeControl "5400+30"]

{[%evp 12,31,14,27,31,21,30,15,27,25,24,18,12,23,34,2,13,27,283,279,268,265]} 1. e4 {[%emt 0:00:05]} c6 {[%emt 0:00:01]} 2. d4 {[%emt 0:00:13]} d5 {[%emt 0:00:03]} 3. exd5 {[%emt 0:00:08]} cxd5 {[%emt 0:00:01]} 4. Bd3 {[%emt 0:00:11]} Nc6 {[%emt 0:00:02]} 5. c3 {[%emt 0:00:08]} Nf6 {[%emt 0:00:02]} 6. Bf4 {[%emt 0:00:07]} Bg4 {[%emt 0:00:03]} 7. Qb3 {[%emt 0:00:09]} Na5 {[%emt 0:00:02] B13: Caro-Kann: Exchange Variation and Panov-Botvinnik Attack.} 8. Qa4+ {[%emt 0:00:34]} Nc6 {[%emt 0:00:04]} 9. Nd2 {[%emt 0:00:53]} e6 {[%emt 0:00:04] The position is equal.} 10. Ngf3 {[%emt 0:01:58]} Bd6 {[%emt 0:00:01]} 11. Ne5 {[%emt 0:04:23]} Qc7 {[%emt 0:00:01]} 12. O-O {[%emt 0:06:00]} O-O {[%emt 0:00:03][%cal Rc6e5] [#]} 13. Rae1 $146 {[%emt 0:02:17]} ({Predecessor:} 13. Nxg4 Bxf4 14. Nxf6+ gxf6 15. Nf3 Kh8 16. g3 Rg8 17. Qd1 Rg7 18. Nh4 Rag8 19. Ng2 {0-1 (51) Shahade,G (2476)-Rozman,L (2343) Chess.com INT 2021}) 13... Nh5 {[%emt 0:02:12]} 14. Bg5 {[%emt 0:11:54]} ({Much worse is} 14. Qc2 Nxf4 15. Nxg4 (15. Bxh7+ Kh8 $17) 15... f5 $17) 14... Nxe5 {[%emt 0:04:45][%mdl 8192] [#]} (14... Bxe5 $2 15. dxe5 Bf5 16. Be2 $16) (14... Bf5 $11 15. Bxf5 exf5) 15. dxe5 $18 {[%emt 0:02:49]} Bxe5 {[%emt 0:00:01]} 16. Qxg4 {[%emt 0:00:16] Weighted Error Value: White=0.04 (flawless) /Black=0.54} 1-0